[Event "Early-Titled-Tuesday-Blitz-February-27-2024"]
[Site "Chess.com"]
[Date "2024.02.27"]
[Round "2"]
[White "Kildepiotr"]
[Black "agvega14"]
[Result "1-0"]
[WhiteElo "2674"]
[BlackElo "2219"]
[TimeControl "180+1"]
[EndTime "8:16:58 PST"]
[Termination "Kildepiotr won on time"]

1. Nf3 {[%clk 0:03:00.9]} 1... d5 {[%clk 0:02:59.5]} 2. g3 {[%clk 0:03:01.3]}
2... Nf6 {[%clk 0:02:59.6]} 3. Bg2 {[%clk 0:03:01.3]} 3... Bf5 {[%clk
0:02:59.6]} 4. O-O {[%clk 0:03:02]} 4... e6 {[%clk 0:02:59.8]} 5. c4 {[%clk
0:03:02.7]} 5... c6 {[%clk 0:03:00]} 6. cxd5 {[%clk 0:03:03]} 6... exd5 {[%clk
0:03:00.1]} 7. d3 {[%clk 0:03:03.5]} 7... Be7 {[%clk 0:02:59.9]} 8. Qb3 {[%clk
0:03:03.8]} 8... Qb6 {[%clk 0:02:59.3]} 9. Qc2 {[%clk 0:03:04.4]} 9... h6 {[%clk
0:02:58.1]} 10. Nc3 {[%clk 0:03:04.9]} 10... Bh7 {[%clk 0:02:56.6]} 11. e4
{[%clk 0:03:05.1]} 11... dxe4 {[%clk 0:02:55.3]} 12. dxe4 {[%clk 0:03:06]} 12...
Nbd7 {[%clk 0:02:55.4]} 13. Be3 {[%clk 0:03:06.1]} 13... Qa5 {[%clk 0:02:50.5]}
14. h3 {[%clk 0:03:02.8]} 14... O-O {[%clk 0:02:48]} 15. Nd4 {[%clk 0:02:57.8]}
15... Rfe8 {[%clk 0:02:47.2]} 16. f4 {[%clk 0:02:53.8]} 16... Bc5 {[%clk
0:02:41.2]} 17. Kh2 {[%clk 0:02:41]} 17... Rad8 {[%clk 0:02:34.4]} 18. Nb3
{[%clk 0:02:40.1]} 18... Qb4 {[%clk 0:02:23.2]} 19. a3 {[%clk 0:02:22.9]} 19...
Qc4 {[%clk 0:02:22.5]} 20. Nxc5 {[%clk 0:01:58.9]} 20... Nxc5 {[%clk 0:02:22.3]}
21. Bxc5 {[%clk 0:01:54.7]} 21... Qxc5 {[%clk 0:02:22.1]} 22. Rae1 {[%clk
0:01:48.1]} 22... Qc4 {[%clk 0:02:04.8]} 23. Qe2 {[%clk 0:01:44.5]} 23... Qxe2
{[%clk 0:02:04.2]} 24. Rxe2 {[%clk 0:01:45.4]} 24... Rd3 {[%clk 0:01:54]} 25.
Rfe1 {[%clk 0:01:42]} 25... Red8 {[%clk 0:01:52.8]} 26. g4 {[%clk 0:01:39.4]}
26... Nd7 {[%clk 0:01:39.9]} 27. e5 {[%clk 0:01:35.2]} 27... Nc5 {[%clk
0:01:39.7]} 28. f5 {[%clk 0:01:33.3]} 28... Rd2 {[%clk 0:01:32]} 29. Kg3 {[%clk
0:01:27.4]} 29... h5 {[%clk 0:01:27.4]} 30. Bf3 {[%clk 0:01:21.4]} 30... hxg4
{[%clk 0:01:22.2]} 31. hxg4 {[%clk 0:01:22.3]} 31... g6 {[%clk 0:01:16.6]} 32.
f6 {[%clk 0:01:16]} 32... g5 {[%clk 0:01:13.8]} 33. Rxd2 {[%clk 0:01:07.1]}
33... Rxd2 {[%clk 0:01:13.7]} 34. Rd1 {[%clk 0:01:06.1]} 34... Rxd1 {[%clk
0:01:13.2]} 35. Nxd1 {[%clk 0:01:07]} 35... Nd3 {[%clk 0:01:10]} 36. Nf2 {[%clk
0:00:46.8]} 36... Nxe5 {[%clk 0:01:09.7]} 37. Nh3 {[%clk 0:00:46.4]} 37... Nd3
{[%clk 0:01:06.4]} 38. Nxg5 {[%clk 0:00:45.6]} 38... Bg6 {[%clk 0:00:16.2]} 39.
b4 {[%clk 0:00:44.2]} 1-0

[Event "Early-Titled-Tuesday-Blitz-February-27-2024"]
[Site "Chess.com"]
[Date "2024.02.27"]
[Round "2"]
[White "DAVIDHDZSTS"]
[Black "gm_rashid"]
[Result "0-1"]
[WhiteElo "1938"]
[BlackElo "2445"]
[TimeControl "180+1"]
[EndTime "8:16:58 PST"]
[Termination "gm_rashid won by checkmate"]

1. d4 {[%clk 0:02:55.6]} 1... Nf6 {[%clk 0:02:57.9]} 2. Nc3 {[%clk 0:02:55.5]}
2... c5 {[%clk 0:02:55.3]} 3. d5 {[%clk 0:02:55.4]} 3... d6 {[%clk 0:02:54.6]}
4. e4 {[%clk 0:02:55.8]} 4... g6 {[%clk 0:02:54.7]} 5. f4 {[%clk 0:02:51.7]}
5... Bg7 {[%clk 0:02:54.1]} 6. Nf3 {[%clk 0:02:52]} 6... O-O {[%clk 0:02:50.1]}
7. Bd3 {[%clk 0:02:52.1]} 7... Nbd7 {[%clk 0:02:49.2]} 8. O-O {[%clk 0:02:51.2]}
8... a6 {[%clk 0:02:49.6]} 9. a4 {[%clk 0:02:48]} 9... Rb8 {[%clk 0:02:48.1]}
10. Rb1 {[%clk 0:02:41.3]} 10... Ne8 {[%clk 0:02:46.6]} 11. Bd2 {[%clk
0:02:40.4]} 11... Nc7 {[%clk 0:02:46.6]} 12. Re1 {[%clk 0:02:39.7]} 12... b5
{[%clk 0:02:44]} 13. axb5 {[%clk 0:02:34.4]} 13... axb5 {[%clk 0:02:44.9]} 14.
Bf1 {[%clk 0:02:29.3]} 14... c4 {[%clk 0:02:22.9]} 15. b4 {[%clk 0:02:18.6]}
15... cxb3 {[%clk 0:02:18.9]} 16. cxb3 {[%clk 0:02:12.3]} 16... b4 {[%clk
0:02:19.1]} 17. Ne2 {[%clk 0:02:01.6]} 17... Nc5 {[%clk 0:02:18.7]} 18. Qc2
{[%clk 0:01:52.7]} 18... Ba6 {[%clk 0:02:16]} 19. Ng3 {[%clk 0:01:45]} 19...
Bxf1 {[%clk 0:02:10.5]} 20. Nxf1 {[%clk 0:01:45]} 20... Qd7 {[%clk 0:02:11.1]}
21. Be3 {[%clk 0:01:34.4]} 21... Nb5 {[%clk 0:01:54.5]} 22. Qf2 {[%clk
0:01:13.4]} 22... Nd3 {[%clk 0:01:51]} 23. Qe2 {[%clk 0:01:09.7]} 23... Nxe1
{[%clk 0:01:51.1]} 24. Qxe1 {[%clk 0:01:10.6]} 24... Nc3 {[%clk 0:01:49]} 25.
Ra1 {[%clk 0:01:04.9]} 25... Rb7 {[%clk 0:01:39.1]} 26. N1d2 {[%clk 0:00:59.5]}
26... Rc8 {[%clk 0:01:24.8]} 27. Ra6 {[%clk 0:00:46.7]} 27... Qb5 {[%clk
0:01:22.1]} 28. Ra1 {[%clk 0:00:33.2]} 28... Ne2+ {[%clk 0:01:18.1]} 29. Kf2
{[%clk 0:00:21.2]} 29... Bxa1 {[%clk 0:01:16.9]} 30. Qxa1 {[%clk 0:00:20.9]}
30... Nc3 {[%clk 0:01:12.2]} 31. Bd4 {[%clk 0:00:19.9]} 31... Qe2+ {[%clk
0:01:10.3]} 32. Kg3 {[%clk 0:00:18.9]} 32... Rbb8 {[%clk 0:01:06.4]} 33. Qa7
{[%clk 0:00:15.3]} 33... Nxe4+ {[%clk 0:01:02.7]} 34. Kh3 {[%clk 0:00:10.7]}
34... Nxd2 {[%clk 0:01:01.1]} 35. Ba1 {[%clk 0:00:10.4]} 35... Nxf3 {[%clk
0:00:54]} 36. gxf3 {[%clk 0:00:05.1]} 36... Qxf3+ {[%clk 0:00:53.9]} 37. Kh4
{[%clk 0:00:06]} 37... Qxf4+ {[%clk 0:00:53.4]} 38. Kh3 {[%clk 0:00:04.5]} 38...
h5 {[%clk 0:00:50.1]} 39. Kg2 {[%clk 0:00:04.6]} 39... Rc2+ {[%clk 0:00:49.1]}
40. Kh3 {[%clk 0:00:04.3]} 40... Qg4# {[%clk 0:00:49.2]} 0-1

[Event "Early-Titled-Tuesday-Blitz-February-27-2024"]
[Site "Chess.com"]
[Date "2024.02.27"]
[Round "2"]
[White "nekotyanof"]
[Black "MITerryble"]
[Result "0-1"]
[WhiteElo "2636"]
[BlackElo "3029"]
[TimeControl "180+1"]
[EndTime "8:16:59 PST"]
[Termination "MITerryble won by resignation"]

1. e4 {[%clk 0:03:00.9]} 1... e6 {[%clk 0:02:44]} 2. d4 {[%clk 0:03:00.8]} 2...
d5 {[%clk 0:02:44.6]} 3. Nd2 {[%clk 0:03:01.4]} 3... Be7 {[%clk 0:02:44.8]} 4.
Ngf3 {[%clk 0:02:58.7]} 4... Nf6 {[%clk 0:02:44.9]} 5. Bd3 {[%clk 0:02:58.4]}
5... c5 {[%clk 0:02:37]} 6. exd5 {[%clk 0:02:55.6]} 6... Qxd5 {[%clk 0:02:36.8]}
7. dxc5 {[%clk 0:02:41.2]} 7... Qxc5 {[%clk 0:02:37.7]} 8. O-O {[%clk
0:02:38.4]} 8... Nbd7 {[%clk 0:02:37.6]} 9. Ne4 {[%clk 0:02:38.6]} 9... Nxe4
{[%clk 0:02:34.7]} 10. Bxe4 {[%clk 0:02:39.5]} 10... Nf6 {[%clk 0:02:35.2]} 11.
Be3 {[%clk 0:02:39.8]} 11... Qc7 {[%clk 0:02:29.3]} 12. Bd3 {[%clk 0:02:24.6]}
12... O-O {[%clk 0:02:29.3]} 13. c3 {[%clk 0:02:23.3]} 13... b6 {[%clk
0:02:28.9]} 14. Bd4 {[%clk 0:02:19.2]} 14... Bb7 {[%clk 0:02:26.5]} 15. Qe2
{[%clk 0:02:18.5]} 15... Rad8 {[%clk 0:02:12.1]} 16. Rfe1 {[%clk 0:01:59.5]}
16... Nd5 {[%clk 0:02:06.6]} 17. Be4 {[%clk 0:01:48.5]} 17... Bf6 {[%clk
0:01:46]} 18. Bxd5 {[%clk 0:01:43]} 18... Bxd5 {[%clk 0:01:45.8]} 19. Bxf6
{[%clk 0:01:43.4]} 19... gxf6 {[%clk 0:01:45.5]} 20. Nd4 {[%clk 0:01:42.7]}
20... Kh8 {[%clk 0:01:43.9]} 21. Qe3 {[%clk 0:01:33.1]} 21... Rg8 {[%clk
0:01:42.5]} 22. f3 {[%clk 0:01:18.1]} 22... Rg5 {[%clk 0:01:36.7]} 23. Re2
{[%clk 0:01:11.9]} 23... Rdg8 {[%clk 0:01:36.2]} 24. Rc1 {[%clk 0:01:07.5]}
24... e5 {[%clk 0:01:21.4]} 25. Nb3 {[%clk 0:00:58.1]} 25... Qc4 {[%clk
0:01:01.8]} 26. Rd1 {[%clk 0:00:52.4]} 26... Be6 {[%clk 0:00:50.1]} 27. Nd2
{[%clk 0:00:49.7]} 27... Qxa2 {[%clk 0:00:49.1]} 28. Ne4 {[%clk 0:00:50.1]}
28... R5g6 {[%clk 0:00:49.8]} 29. b4 {[%clk 0:00:20]} 29... Qa4 {[%clk
0:00:48.2]} 30. Rd6 {[%clk 0:00:18.2]} 30... Qa1+ {[%clk 0:00:45.5]} 31. Re1
{[%clk 0:00:16.1]} 31... Rxg2+ {[%clk 0:00:45.3]} 32. Kh1 {[%clk 0:00:17]} 32...
Qa2 {[%clk 0:00:40.8]} 33. Nd2 {[%clk 0:00:13.8]} 33... Bd5 {[%clk 0:00:32.6]}
34. Qh6 {[%clk 0:00:12.2]} 34... Qxd2 {[%clk 0:00:26]} 35. Qxf6+ {[%clk
0:00:12.6]} 35... R2g7 {[%clk 0:00:26.5]} 36. Rg1 {[%clk 0:00:05.2]} 36... Bxf3+
{[%clk 0:00:26.6]} 37. Qxf3 {[%clk 0:00:06]} 0-1

[Event "Early-Titled-Tuesday-Blitz-February-27-2024"]
[Site "Chess.com"]
[Date "2024.02.27"]
[Round "2"]
[White "talaicito"]
[Black "Triumphmate"]
[Result "0-1"]
[WhiteElo "2283"]
[BlackElo "2525"]
[TimeControl "180+1"]
[EndTime "8:16:59 PST"]
[Termination "Triumphmate won on time"]

1. d4 {[%clk 0:03:00.9]} 1... d5 {[%clk 0:02:57.3]} 2. Bf4 {[%clk 0:03:01.4]}
2... e6 {[%clk 0:02:50.8]} 3. Nc3 {[%clk 0:03:01.8]} 3... f5 {[%clk 0:02:46.1]}
4. Nb5 {[%clk 0:02:45.4]} 4... Na6 {[%clk 0:02:42.2]} 5. e3 {[%clk 0:02:44.5]}
5... c6 {[%clk 0:02:41.7]} 6. Nc3 {[%clk 0:02:44.1]} 6... Nb8 {[%clk 0:02:42]}
7. Nf3 {[%clk 0:02:36.1]} 7... Bd6 {[%clk 0:02:40.3]} 8. Bxd6 {[%clk 0:02:29]}
8... Qxd6 {[%clk 0:02:38.9]} 9. Ne5 {[%clk 0:02:29.9]} 9... Nf6 {[%clk
0:02:37.4]} 10. Bd3 {[%clk 0:02:21.5]} 10... O-O {[%clk 0:02:35.2]} 11. g4
{[%clk 0:02:00.2]} 11... Nbd7 {[%clk 0:02:36.1]} 12. f4 {[%clk 0:01:55.2]} 12...
Ne4 {[%clk 0:02:12.8]} 13. gxf5 {[%clk 0:01:17.9]} 13... exf5 {[%clk 0:02:08]}
14. Nxe4 {[%clk 0:01:14.7]} 14... fxe4 {[%clk 0:02:07.2]} 15. Be2 {[%clk
0:01:11.8]} 15... Nxe5 {[%clk 0:02:03.2]} 16. dxe5 {[%clk 0:01:07.1]} 16... Qh6
{[%clk 0:01:57.7]} 17. O-O {[%clk 0:00:56.3]} 17... Bh3 {[%clk 0:01:41.5]} 18.
Rf2 {[%clk 0:00:55.4]} 18... Rad8 {[%clk 0:01:41]} 19. Kh1 {[%clk 0:00:47.9]}
19... d4 {[%clk 0:01:39.9]} 20. Bc4+ {[%clk 0:00:34.6]} 20... Kh8 {[%clk
0:01:37.4]} 21. Qe2 {[%clk 0:00:30.3]} 21... b5 {[%clk 0:01:28]} 22. Bb3 {[%clk
0:00:28.2]} 22... c5 {[%clk 0:01:14.3]} 23. e6 {[%clk 0:00:14.7]} 23... Bxe6
{[%clk 0:01:08.9]} 24. Bxe6 {[%clk 0:00:14]} 24... Qxe6 {[%clk 0:01:09.8]} 25.
Rd1 {[%clk 0:00:12.4]} 25... dxe3 {[%clk 0:01:04.1]} 26. Rxd8 {[%clk 0:00:11.3]}
26... Rxd8 {[%clk 0:01:05]} 27. Qxe3 {[%clk 0:00:11.6]} 27... Qg4 {[%clk
0:00:57.1]} 28. Rf1 {[%clk 0:00:11.3]} 28... Rd1 {[%clk 0:00:51]} 29. Rxd1
{[%clk 0:00:10.9]} 29... Qxd1+ {[%clk 0:00:51.9]} 30. Kg2 {[%clk 0:00:10.8]}
30... Qxc2+ {[%clk 0:00:52.1]} 31. Kg3 {[%clk 0:00:10]} 31... Qd3 {[%clk
0:00:51.3]} 32. Kf2 {[%clk 0:00:10]} 32... Qd4 {[%clk 0:00:35.8]} 33. Ke2 {[%clk
0:00:05.9]} 33... Qxb2+ {[%clk 0:00:35.9]} 34. Kd1 {[%clk 0:00:02.9]} 34... Qb1+
{[%clk 0:00:35.7]} 35. Ke2 {[%clk 0:00:02.5]} 35... Qxa2+ {[%clk 0:00:34.8]} 0-1

[Event "Early-Titled-Tuesday-Blitz-February-27-2024"]
[Site "Chess.com"]
[Date "2024.02.27"]
[Round "2"]
[White "Fdpo95"]
[Black "VladimirBugayev"]
[Result "1-0"]
[WhiteElo "2509"]
[BlackElo "2228"]
[TimeControl "180+1"]
[EndTime "8:17:00 PST"]
[Termination "Fdpo95 won on time"]

1. e4 {[%clk 0:03:00.3]} 1... c6 {[%clk 0:02:40.6]} 2. d4 {[%clk 0:03:00.3]}
2... d5 {[%clk 0:02:40.5]} 3. Nd2 {[%clk 0:03:00.8]} 3... dxe4 {[%clk
0:02:40.1]} 4. Nxe4 {[%clk 0:03:01.7]} 4... Nf6 {[%clk 0:02:40.7]} 5. Nxf6+
{[%clk 0:03:01.7]} 5... exf6 {[%clk 0:02:41.6]} 6. c3 {[%clk 0:03:02.3]} 6...
Bd6 {[%clk 0:02:41.6]} 7. Bd3 {[%clk 0:03:03]} 7... O-O {[%clk 0:02:33.8]} 8.
Ne2 {[%clk 0:03:03.4]} 8... Nd7 {[%clk 0:02:26.4]} 9. Qc2 {[%clk 0:03:03.8]}
9... h5 {[%clk 0:02:26.5]} 10. O-O {[%clk 0:03:04]} 10... h4 {[%clk 0:02:26.1]}
11. Bf4 {[%clk 0:03:00.5]} 11... Nb6 {[%clk 0:02:10.2]} 12. Rad1 {[%clk
0:02:59.2]} 12... Nd5 {[%clk 0:02:05.7]} 13. Bxd6 {[%clk 0:02:47]} 13... Qxd6
{[%clk 0:02:06.6]} 14. c4 {[%clk 0:02:45.2]} 14... Nb4 {[%clk 0:02:02.3]} 15.
Bh7+ {[%clk 0:02:45.2]} 15... Kh8 {[%clk 0:02:01.3]} 16. Qb1 {[%clk 0:02:45.8]}
16... Nxa2 {[%clk 0:01:47.1]} 17. Qe4 {[%clk 0:02:28.7]} 17... g5 {[%clk
0:01:40.2]} 18. Bf5 {[%clk 0:02:25.1]} 18... Bxf5 {[%clk 0:01:30]} 19. Qxf5
{[%clk 0:02:25.3]} 19... Qe6 {[%clk 0:01:30.5]} 20. Qf3 {[%clk 0:02:23.7]} 20...
Nb4 {[%clk 0:01:14.3]} 21. Nc3 {[%clk 0:02:16.1]} 21... Rfe8 {[%clk 0:00:57.3]}
22. h3 {[%clk 0:02:16.3]} 22... Rad8 {[%clk 0:00:54.3]} 23. Rd2 {[%clk 0:02:09]}
23... Kg7 {[%clk 0:00:52.6]} 24. Rfd1 {[%clk 0:02:09]} 24... Qxc4 {[%clk
0:00:52.6]} 25. Ne4 {[%clk 0:02:05]} 25... Nd5 {[%clk 0:00:51.4]} 26. Qf5 {[%clk
0:02:00.5]} 26... Rxe4 {[%clk 0:00:44.6]} 27. Qxe4 {[%clk 0:02:00.2]} 27... Rd7
{[%clk 0:00:45.2]} 28. g3 {[%clk 0:01:50.4]} 28... hxg3 {[%clk 0:00:43.3]} 29.
fxg3 {[%clk 0:01:51.3]} 29... Re7 {[%clk 0:00:43.4]} 30. Qf3 {[%clk 0:01:44.1]}
30... Re3 {[%clk 0:00:42]} 31. Qf2 {[%clk 0:01:44.4]} 31... Qb3 {[%clk
0:00:39.9]} 32. Kh2 {[%clk 0:01:42]} 32... Re6 {[%clk 0:00:25.7]} 33. Rd3 {[%clk
0:01:38]} 33... Qb5 {[%clk 0:00:21.5]} 34. R1d2 {[%clk 0:01:37.2]} 34... Qb6
{[%clk 0:00:21.2]} 35. h4 {[%clk 0:01:35.7]} 35... gxh4 {[%clk 0:00:19.2]} 36.
gxh4 {[%clk 0:01:35.8]} 36... Qc7+ {[%clk 0:00:19.9]} 37. Rg3+ {[%clk
0:01:35.3]} 37... Kf8 {[%clk 0:00:18.9]} 38. Kg1 {[%clk 0:01:30.1]} 38... Re4
{[%clk 0:00:18.7]} 39. Qg2 {[%clk 0:01:26.5]} 39... Qf4 {[%clk 0:00:17.6]} 40.
Re2 {[%clk 0:01:08.3]} 40... Rxe2 {[%clk 0:00:15.2]} 41. Rg8+ {[%clk 0:01:07.9]}
41... Ke7 {[%clk 0:00:15.6]} 42. Qxe2+ {[%clk 0:01:08.4]} 42... Kd6 {[%clk
0:00:15.4]} 43. Qh2 {[%clk 0:01:04.9]} 43... Qxh2+ {[%clk 0:00:12.4]} 44. Kxh2
{[%clk 0:01:05.8]} 44... Ne3 {[%clk 0:00:11.7]} 45. h5 {[%clk 0:01:04.4]} 45...
Nf5 {[%clk 0:00:11.4]} 46. Rh8 {[%clk 0:01:02.1]} 46... Kd5 {[%clk 0:00:08.9]}
47. h6 {[%clk 0:01:02.1]} 47... Kxd4 {[%clk 0:00:09.4]} 48. h7 {[%clk
0:01:02.2]} 1-0

[Event "Early-Titled-Tuesday-Blitz-February-27-2024"]
[Site "Chess.com"]
[Date "2024.02.27"]
[Round "2"]
[White "Kopytkin"]
[Black "KarolKacprzak"]
[Result "0-1"]
[WhiteElo "2456"]
[BlackElo "2731"]
[TimeControl "180+1"]
[EndTime "8:17:01 PST"]
[Termination "KarolKacprzak won on time"]

1. d4 {[%clk 0:03:00.9]} 1... Nf6 {[%clk 0:02:58.6]} 2. Bg5 {[%clk 0:03:00.9]}
2... d5 {[%clk 0:02:51.7]} 3. e3 {[%clk 0:03:00.7]} 3... e6 {[%clk 0:02:49.3]}
4. Nd2 {[%clk 0:02:59.5]} 4... c5 {[%clk 0:02:49.7]} 5. c3 {[%clk 0:02:59.3]}
5... Nbd7 {[%clk 0:02:45.7]} 6. f4 {[%clk 0:02:47.1]} 6... h6 {[%clk 0:02:43.7]}
7. Bxf6 {[%clk 0:02:36.7]} 7... Nxf6 {[%clk 0:02:44.6]} 8. Ngf3 {[%clk
0:02:36.9]} 8... Bd6 {[%clk 0:02:40.7]} 9. Bd3 {[%clk 0:02:21.9]} 9... cxd4
{[%clk 0:02:38.2]} 10. cxd4 {[%clk 0:02:21]} 10... Qb6 {[%clk 0:02:31]} 11. Rb1
{[%clk 0:02:15.5]} 11... Bd7 {[%clk 0:02:30.8]} 12. Qe2 {[%clk 0:02:13.1]} 12...
a6 {[%clk 0:02:29.1]} 13. O-O {[%clk 0:02:11.9]} 13... Bb5 {[%clk 0:02:26.4]}
14. Rfc1 {[%clk 0:02:05.4]} 14... O-O {[%clk 0:02:20.6]} 15. Ne5 {[%clk
0:02:05.6]} 15... Rfc8 {[%clk 0:02:03]} 16. Bxb5 {[%clk 0:01:36.2]} 16... Qxb5
{[%clk 0:01:49.5]} 17. Qxb5 {[%clk 0:01:16.7]} 17... axb5 {[%clk 0:01:50.4]} 18.
Rxc8+ {[%clk 0:00:56.8]} 18... Rxc8 {[%clk 0:01:50.2]} 19. Kf1 {[%clk
0:00:44.1]} 19... Rc2 {[%clk 0:01:47.1]} 20. Ke1 {[%clk 0:00:44.2]} 20... Bb4
{[%clk 0:01:45.4]} 21. Nd3 {[%clk 0:00:14]} 21... Rxd2 {[%clk 0:01:28.9]} 22.
Nxb4 {[%clk 0:00:13.9]} 22... Rxg2 {[%clk 0:01:29.6]} 23. Rc1 {[%clk 0:00:08.7]}
23... Rxb2 {[%clk 0:01:27.1]} 24. a3 {[%clk 0:00:08.7]} 24... Rb3 {[%clk
0:01:22.3]} 25. Ke2 {[%clk 0:00:08.5]} 25... Rxa3 {[%clk 0:01:20.9]} 26. Rc8+
{[%clk 0:00:07.2]} 26... Kh7 {[%clk 0:01:21.2]} 27. Rc7 {[%clk 0:00:08.1]} 27...
Ng4 {[%clk 0:00:23.6]} 28. Nd3 {[%clk 0:00:06]} 28... f6 {[%clk 0:00:24.1]} 29.
Rxb7 {[%clk 0:00:05.6]} 29... Ra2+ {[%clk 0:00:22.3]} 30. Kf3 {[%clk 0:00:03.2]}
30... Nxh2+ {[%clk 0:00:22.4]} 31. Kg3 {[%clk 0:00:02.7]} 31... Nf1+ {[%clk
0:00:21.8]} 32. Kf3 {[%clk 0:00:03.6]} 32... Nd2+ {[%clk 0:00:21.4]} 33. Kg4
{[%clk 0:00:02.3]} 33... Nc4 {[%clk 0:00:19.2]} 0-1

[Event "Early-Titled-Tuesday-Blitz-February-27-2024"]
[Site "Chess.com"]
[Date "2024.02.27"]
[Round "2"]
[White "Mesa_1"]
[Black "WiktoriaPOL"]
[Result "1-0"]
[WhiteElo "2518"]
[BlackElo "2266"]
[TimeControl "180+1"]
[EndTime "8:17:01 PST"]
[Termination "Mesa_1 won by checkmate"]

1. e4 {[%clk 0:03:00.9]} 1... c5 {[%clk 0:02:59.2]} 2. Nc3 {[%clk 0:02:59.6]}
2... Nc6 {[%clk 0:02:58.4]} 3. Bb5 {[%clk 0:03:00]} 3... Nd4 {[%clk 0:02:58.2]}
4. Nf3 {[%clk 0:03:00.7]} 4... Nxb5 {[%clk 0:02:57.5]} 5. Nxb5 {[%clk
0:03:01.5]} 5... a6 {[%clk 0:02:57.6]} 6. Nc3 {[%clk 0:03:01.4]} 6... g6 {[%clk
0:02:58]} 7. d4 {[%clk 0:03:01.8]} 7... cxd4 {[%clk 0:02:58.2]} 8. Qxd4 {[%clk
0:03:02.7]} 8... Nf6 {[%clk 0:02:56.6]} 9. e5 {[%clk 0:02:57.1]} 9... Nh5 {[%clk
0:02:54.5]} 10. Bg5 {[%clk 0:02:49.7]} 10... Ng7 {[%clk 0:02:50.4]} 11. Nd5
{[%clk 0:02:36.8]} 11... Ne6 {[%clk 0:02:43.3]} 12. Qc3 {[%clk 0:02:37.3]} 12...
h6 {[%clk 0:02:18.3]} 13. Be3 {[%clk 0:02:33.6]} 13... d6 {[%clk 0:01:49.7]} 14.
Nd4 {[%clk 0:01:48.7]} 14... Nc5 {[%clk 0:01:02.4]} 15. b4 {[%clk 0:01:43]}
15... Na4 {[%clk 0:00:27]} 16. Qb3 {[%clk 0:01:37.7]} 16... Bd7 {[%clk
0:00:17.1]} 17. exd6 {[%clk 0:01:29.9]} 17... exd6 {[%clk 0:00:12.8]} 18. b5
{[%clk 0:01:22.6]} 18... Nc5 {[%clk 0:00:11.1]} 19. Qc3 {[%clk 0:01:23.2]} 19...
Bg7 {[%clk 0:00:10.9]} 20. bxa6 {[%clk 0:01:13.8]} 20... bxa6 {[%clk 0:00:10.2]}
21. O-O {[%clk 0:01:14.5]} 21... O-O {[%clk 0:00:09.8]} 22. Qd2 {[%clk
0:01:14.7]} 22... Ne4 {[%clk 0:00:09.4]} 23. Qd3 {[%clk 0:01:14.2]} 23... Nc5
{[%clk 0:00:09.4]} 24. Qd1 {[%clk 0:01:12.5]} 24... Ne6 {[%clk 0:00:07.9]} 25.
Re1 {[%clk 0:01:11.9]} 25... Nxd4 {[%clk 0:00:05]} 26. Bxd4 {[%clk 0:01:12.8]}
26... Be6 {[%clk 0:00:05.4]} 27. Bxg7 {[%clk 0:01:12.2]} 27... Kxg7 {[%clk
0:00:06.3]} 28. Qd4+ {[%clk 0:01:12]} 28... Kg8 {[%clk 0:00:03.3]} 29. Nf6+
{[%clk 0:01:10.9]} 29... Kh8 {[%clk 0:00:03.2]} 30. Nh5+ {[%clk 0:00:58.4]}
30... f6 {[%clk 0:00:03]} 31. Rxe6 {[%clk 0:00:57.8]} 31... gxh5 {[%clk
0:00:03.3]} 32. Rae1 {[%clk 0:00:57.7]} 32... Rf7 {[%clk 0:00:02.3]} 33. Qd5
{[%clk 0:00:54.4]} 33... Qf8 {[%clk 0:00:02.4]} 34. Qxh5 {[%clk 0:00:51.3]}
34... Kh7 {[%clk 0:00:01.9]} 35. Qf5+ {[%clk 0:00:50.7]} 35... Kg7 {[%clk
0:00:01.7]} 36. h4 {[%clk 0:00:51]} 36... Rb8 {[%clk 0:00:01]} 37. R1e3 {[%clk
0:00:51.4]} 37... Rb6 {[%clk 0:00:01.1]} 38. Rg3+ {[%clk 0:00:50.7]} 38... Kh8
{[%clk 0:00:01.8]} 39. Qg6 {[%clk 0:00:49.1]} 39... Rb5 {[%clk 0:00:02.2]} 40.
Re8 {[%clk 0:00:44.7]} 40... Qxe8 {[%clk 0:00:02.6]} 41. Qxh6+ {[%clk 0:00:45]}
41... Rh7 {[%clk 0:00:02.4]} 42. Qxf6+ {[%clk 0:00:45.7]} 42... Rg7 {[%clk
0:00:02]} 43. Qxg7# {[%clk 0:00:46.1]} 1-0